[Event "*** Titled Tuesday Blitz"]
[Site "Chess.com"]
[Date "2018.06.05"]
[Round "4"]
[White "1stSecond"]
[Black "Sanan_Sjugirov"]
[Result "1/2-1/2"]
[WhiteElo "2602"]
[BlackElo "2706"]
[TimeControl "180+2"]
[EndTime "14:02:18 PDT"]
[Termination "Game drawn by repetition"]

1. c4 {[%clk 0:03:01.9]} 1... e5 {[%clk 0:02:59.9]} 2. Nc3 {[%clk 0:03:01.3]}
2... d6 {[%clk 0:03:00.6]} 3. g3 {[%clk 0:03:01.2]} 3... f5 {[%clk 0:03:00.9]}
4. Bg2 {[%clk 0:03:02.6]} 4... Nf6 {[%clk 0:03:01.8]} 5. d3 {[%clk 0:02:54.5]}
5... Be7 {[%clk 0:03:02.4]} 6. Nf3 {[%clk 0:02:50.6]} 6... O-O {[%clk
0:03:02.2]} 7. O-O {[%clk 0:02:52.1]} 7... c6 {[%clk 0:02:53.9]} 8. Rb1 {[%clk
0:02:47.4]} 8... a5 {[%clk 0:02:50.2]} 9. a3 {[%clk 0:02:48.3]} 9... Kh8 {[%clk
0:02:45.8]} 10. b4 {[%clk 0:02:48.6]} 10... axb4 {[%clk 0:02:46.6]} 11. axb4
{[%clk 0:02:50.5]} 11... Na6 {[%clk 0:02:40.9]} 12. b5 {[%clk 0:02:00.6]} 12...
Nc5 {[%clk 0:02:40.3]} 13. bxc6 {[%clk 0:02:01.2]} 13... bxc6 {[%clk 0:02:42.2]}
14. d4 {[%clk 0:02:02.2]} 14... Nce4 {[%clk 0:02:39.7]} 15. Nxe4 {[%clk
0:01:48.2]} 15... Nxe4 {[%clk 0:02:23.9]} 16. Bb2 {[%clk 0:01:48.9]} 16... exd4
{[%clk 0:02:15.7]} 17. Nxd4 {[%clk 0:01:48.4]} 17... Qc7 {[%clk 0:02:13.9]} 18.
Qc2 {[%clk 0:01:29.2]} 18... Bf6 {[%clk 0:01:44.1]} 19. Nxf5 {[%clk 0:01:17.4]}
19... Bxf5 {[%clk 0:01:28.5]} 20. Bxe4 {[%clk 0:01:17.5]} 20... Bxe4 {[%clk
0:01:27.6]} 21. Qxe4 {[%clk 0:01:18.1]} 21... Rae8 {[%clk 0:01:17.6]} 22. Qd3
{[%clk 0:01:19]} 22... Bxb2 {[%clk 0:01:18]} 23. Rxb2 {[%clk 0:01:20.9]} 23...
Rf6 {[%clk 0:01:14.8]} 24. Rfb1 {[%clk 0:01:09]} 24... Ref8 {[%clk 0:01:12.6]}
25. Qd4 {[%clk 0:00:59.1]} 25... c5 {[%clk 0:01:05.5]} 26. Qe3 {[%clk
0:00:57.8]} 26... Qf7 {[%clk 0:01:04.9]} 27. Rb8 {[%clk 0:00:48.3]} 27... Qxc4
{[%clk 0:00:57.2]} 28. Rxf8+ {[%clk 0:00:30.2]} 28... Rxf8 {[%clk 0:00:59.1]}
29. Qe7 {[%clk 0:00:31.4]} 29... Kg8 {[%clk 0:00:38.7]} 30. Qxd6 {[%clk
0:00:24.8]} 30... Qxe2 {[%clk 0:00:35.9]} 31. Qd5+ {[%clk 0:00:26]} 31... Kh8
{[%clk 0:00:35.9]} 32. Qxc5 {[%clk 0:00:27.5]} 32... Kg8 {[%clk 0:00:33.4]} 33.
h4 {[%clk 0:00:27.2]} 33... h6 {[%clk 0:00:34]} 34. Qd4 {[%clk 0:00:24.3]} 34...
Rf7 {[%clk 0:00:29.4]} 35. Rb3 {[%clk 0:00:20.9]} 35... Kh7 {[%clk 0:00:27.3]}
36. Kg2 {[%clk 0:00:17.3]} 36... Qc2 {[%clk 0:00:27.1]} 37. Rb6 {[%clk 0:00:16]}
37... Qf5 {[%clk 0:00:25.4]} 38. Rb3 {[%clk 0:00:14.2]} 38... Qc2 {[%clk
0:00:25.8]} 39. Ra3 {[%clk 0:00:12.5]} 39... Qc6+ {[%clk 0:00:24.4]} 40. Kh2
{[%clk 0:00:13.6]} 40... Qc2 {[%clk 0:00:25]} 41. Kg2 {[%clk 0:00:08.2]} 41...
Qc6+ {[%clk 0:00:25.8]} 42. f3 {[%clk 0:00:08.9]} 42... Qc2+ {[%clk 0:00:24.5]}
43. Qf2 {[%clk 0:00:07.5]} 43... Qb1 {[%clk 0:00:24.3]} 44. Re3 {[%clk
0:00:07.4]} 44... Rc7 {[%clk 0:00:23.3]} 45. Re1 {[%clk 0:00:08.4]} 45... Qf5
{[%clk 0:00:23.1]} 46. Re2 {[%clk 0:00:08.7]} 46... Rc3 {[%clk 0:00:21.5]} 47.
Rd2 {[%clk 0:00:09.6]} 47... Qf6 {[%clk 0:00:08.5]} 48. Qe2 {[%clk 0:00:11]}
48... Qf5 {[%clk 0:00:08]} 49. Rb2 {[%clk 0:00:12.1]} 49... Qg6 {[%clk
0:00:06.9]} 50. Ra2 {[%clk 0:00:10.6]} 50... Qf5 {[%clk 0:00:06.9]} 51. Rd2
{[%clk 0:00:09.2]} 51... Qg6 {[%clk 0:00:07.7]} 52. Kf2 {[%clk 0:00:04.9]} 52...
Qb6+ {[%clk 0:00:08.3]} 53. Kg2 {[%clk 0:00:04.8]} 53... Re3 {[%clk 0:00:09.8]}
54. Qf2 {[%clk 0:00:06]} 54... Qe6 {[%clk 0:00:09.6]} 55. Qf1 {[%clk 0:00:07.1]}
55... Rc3 {[%clk 0:00:09.5]} 56. Qb1+ {[%clk 0:00:08.2]} 56... Qg6 {[%clk
0:00:09.7]} 57. Qxg6+ {[%clk 0:00:08.8]} 57... Kxg6 {[%clk 0:00:11.6]} 58. Rd6+
{[%clk 0:00:09.8]} 58... Kf7 {[%clk 0:00:12.4]} 59. g4 {[%clk 0:00:11]} 59...
Rc2+ {[%clk 0:00:13]} 60. Kg3 {[%clk 0:00:12.5]} 60... Rc1 {[%clk 0:00:14.5]}
61. Rd4 {[%clk 0:00:13.4]} 61... Kf6 {[%clk 0:00:14.8]} 62. h5 {[%clk
0:00:12.9]} 62... Ke5 {[%clk 0:00:15.2]} 63. Ra4 {[%clk 0:00:12.4]} 63... Rg1+
{[%clk 0:00:15.7]} 64. Kf2 {[%clk 0:00:12.9]} 64... Rb1 {[%clk 0:00:17.3]} 65.
Ra6 {[%clk 0:00:14.3]} 65... Kf4 {[%clk 0:00:15.8]} 66. Ra4+ {[%clk 0:00:14]}
66... Ke5 {[%clk 0:00:16.3]} 67. Ra7 {[%clk 0:00:09.2]} 67... Kf6 {[%clk
0:00:16.1]} 68. Kg3 {[%clk 0:00:10.4]} 68... Rb4 {[%clk 0:00:16.7]} 69. Ra8
{[%clk 0:00:10.7]} 69... Kf7 {[%clk 0:00:17.3]} 70. Ra5 {[%clk 0:00:12.1]} 70...
Kf6 {[%clk 0:00:17.2]} 71. Rf5+ {[%clk 0:00:13.5]} 71... Ke6 {[%clk 0:00:18.5]}
72. Rf8 {[%clk 0:00:13.6]} 72... Ke7 {[%clk 0:00:18.9]} 73. Rf4 {[%clk
0:00:14.9]} 73... Rb1 {[%clk 0:00:19.6]} 74. Kf2 {[%clk 0:00:16.1]} 74... Rb2+
{[%clk 0:00:20.3]} 75. Ke3 {[%clk 0:00:17.5]} 75... Rb3+ {[%clk 0:00:21.6]} 76.
Ke4 {[%clk 0:00:18.9]} 76... Ke6 {[%clk 0:00:21.5]} 77. Rf8 {[%clk 0:00:19]}
77... Rb4+ {[%clk 0:00:22.7]} 78. Ke3 {[%clk 0:00:19.7]} 78... Rb3+ {[%clk
0:00:24.1]} 79. Kf4 {[%clk 0:00:21.1]} 79... Rb4+ {[%clk 0:00:25.5]} 80. Kg3
{[%clk 0:00:22.5]} 80... Ke7 {[%clk 0:00:26.1]} 81. Ra8 {[%clk 0:00:22.9]} 81...
Kf6 {[%clk 0:00:26.2]} 82. Ra7 {[%clk 0:00:22.7]} 82... Rb1 {[%clk 0:00:25.9]}
83. Ra6+ {[%clk 0:00:21.4]} 83... Kf7 {[%clk 0:00:26.7]} 84. Rd6 {[%clk
0:00:21.1]} 84... Rb4 {[%clk 0:00:27.2]} 85. Kf2 {[%clk 0:00:20.3]} 85... Rb2+
{[%clk 0:00:28]} 86. Ke3 {[%clk 0:00:21.5]} 86... Rb3+ {[%clk 0:00:29.6]} 87.
Ke4 {[%clk 0:00:22.9]} 87... Rb4+ {[%clk 0:00:31]} 88. Ke5 {[%clk 0:00:23.1]}
88... Rb5+ {[%clk 0:00:28.1]} 89. Rd5 {[%clk 0:00:23.7]} 89... Rb7 {[%clk
0:00:29.1]} 90. Kf5 {[%clk 0:00:22.6]} 90... Ra7 {[%clk 0:00:29.7]} 91. f4
{[%clk 0:00:23.5]} 91... Rb7 {[%clk 0:00:29.4]} 92. g5 {[%clk 0:00:24.4]} 92...
hxg5 {[%clk 0:00:30.7]} 93. fxg5 {[%clk 0:00:26.3]} 93... g6+ {[%clk 0:00:32.1]}
94. hxg6+ {[%clk 0:00:23.9]} 94... Kg7 {[%clk 0:00:33.2]} 95. Re5 {[%clk
0:00:22.1]} 95... Ra7 {[%clk 0:00:33.5]} 96. Re6 {[%clk 0:00:22.7]} 96... Ra5+
{[%clk 0:00:32.8]} 97. Kg4 {[%clk 0:00:23.9]} 97... Ra1 {[%clk 0:00:33.9]} 98.
Re7+ {[%clk 0:00:07.2]} 98... Kxg6 {[%clk 0:00:34.2]} 99. Re6+ {[%clk
0:00:08.7]} 99... Kg7 {[%clk 0:00:35.5]} 100. Re7+ {[%clk 0:00:09.3]} 100... Kg6
{[%clk 0:00:36.7]} 101. Re6+ {[%clk 0:00:10.6]} 101... Kg7 {[%clk 0:00:38.1]}
102. Re7+ {[%clk 0:00:11.6]} 102... Kg6 {[%clk 0:00:39.4]} 103. Re6+ {[%clk
0:00:12.8]} 103... Kg7 {[%clk 0:00:40.6]} 1/2-1/2

[Event "*** Titled Tuesday Blitz"]
[Site "Chess.com"]
[Date "2018.06.05"]
[Round "4"]
[White "Galileo22"]
[Black "chessking2151"]
[Result "1/2-1/2"]
[WhiteElo "2333"]
[BlackElo "2419"]
[TimeControl "180+2"]
[EndTime "14:04:46 PDT"]
[Termination "Game drawn by repetition"]

1. Nf3 {[%clk 0:03:01.9]} 1... d5 {[%clk 0:03:00.7]} 2. g3 {[%clk 0:03:03]} 2...
Nf6 {[%clk 0:02:59.2]} 3. Bg2 {[%clk 0:03:04.2]} 3... c5 {[%clk 0:03:00]} 4. O-O
{[%clk 0:03:05.3]} 4... a6 {[%clk 0:03:01.5]} 5. d3 {[%clk 0:03:06.3]} 5... Nc6
{[%clk 0:03:00.7]} 6. Nbd2 {[%clk 0:03:07.5]} 6... e5 {[%clk 0:03:02.1]} 7. e4
{[%clk 0:03:07.5]} 7... d4 {[%clk 0:03:01.8]} 8. Nc4 {[%clk 0:03:05.8]} 8... Nd7
{[%clk 0:03:02.3]} 9. a4 {[%clk 0:03:06.1]} 9... Qc7 {[%clk 0:02:49]} 10. a5
{[%clk 0:02:59.2]} 10... Be7 {[%clk 0:02:41.2]} 11. Nh4 {[%clk 0:02:56.3]} 11...
Bxh4 {[%clk 0:02:35.1]} 12. gxh4 {[%clk 0:02:58.1]} 12... b5 {[%clk 0:02:22.3]}
13. axb6 {[%clk 0:02:56.1]} 13... Nxb6 {[%clk 0:02:22.5]} 14. Nxb6 {[%clk
0:02:52.5]} 14... Qxb6 {[%clk 0:02:22.3]} 15. b3 {[%clk 0:02:48.4]} 15... Be6
{[%clk 0:02:19.3]} 16. f4 {[%clk 0:02:48.4]} 16... exf4 {[%clk 0:02:12.2]} 17.
Bxf4 {[%clk 0:02:48.1]} 17... O-O {[%clk 0:02:09.3]} 18. Qf3 {[%clk 0:02:40.3]}
18... Nb4 {[%clk 0:01:58.6]} 19. Rf2 {[%clk 0:02:39.9]} 19... Ra7 {[%clk
0:01:48.6]} 20. Qg3 {[%clk 0:02:39.8]} 20... f6 {[%clk 0:01:46.8]} 21. Bf3
{[%clk 0:02:32.2]} 21... Kh8 {[%clk 0:01:43]} 22. Raf1 {[%clk 0:02:29.9]} 22...
Raf7 {[%clk 0:01:40.5]} 23. h5 {[%clk 0:02:22.6]} 23... Rg8 {[%clk 0:01:12.4]}
24. Kh1 {[%clk 0:02:15.2]} 24... Re8 {[%clk 0:00:52.3]} 25. Qh4 {[%clk
0:02:11.9]} 25... Qd8 {[%clk 0:00:46]} 26. Rg1 {[%clk 0:02:07.8]} 26... Rg8
{[%clk 0:00:45.1]} 27. Rfg2 {[%clk 0:01:49.3]} 27... Nc6 {[%clk 0:00:42.6]} 28.
Qg3 {[%clk 0:01:41]} 28... Qd7 {[%clk 0:00:32.3]} 29. h4 {[%clk 0:01:28]} 29...
Ne5 {[%clk 0:00:32]} 30. Bd1 {[%clk 0:01:26.6]} 30... Nc6 {[%clk 0:00:24.6]} 31.
Kh2 {[%clk 0:01:08.9]} 31... Rd8 {[%clk 0:00:21.4]} 32. h6 {[%clk 0:01:02.4]}
32... g6 {[%clk 0:00:21.8]} 33. Re1 {[%clk 0:00:54.3]} 33... Rdf8 {[%clk
0:00:20.4]} 34. Bd6 {[%clk 0:00:48.5]} 34... Rc8 {[%clk 0:00:20.7]} 35. Bxc5
{[%clk 0:00:45.3]} 35... Ne5 {[%clk 0:00:22.1]} 36. Ba3 {[%clk 0:00:43.1]} 36...
Qc7 {[%clk 0:00:15.3]} 37. Reg1 {[%clk 0:00:32.5]} 37... Bg4 {[%clk 0:00:12.5]}
38. Kh1 {[%clk 0:00:22.7]} 38... Bxd1 {[%clk 0:00:12.8]} 39. Rxd1 {[%clk
0:00:24.6]} 39... Qd7 {[%clk 0:00:12.9]} 40. Bc1 {[%clk 0:00:24.4]} 40... Kg8
{[%clk 0:00:13.6]} 41. Bf4 {[%clk 0:00:24.9]} 41... Nc6 {[%clk 0:00:14.4]} 42.
Rdg1 {[%clk 0:00:25.5]} 42... Kh8 {[%clk 0:00:14.8]} 43. h5 {[%clk 0:00:26.2]}
43... Rg8 {[%clk 0:00:15.9]} 44. hxg6 {[%clk 0:00:25.4]} 44... Rxg6 {[%clk
0:00:16.8]} 45. Qh4 {[%clk 0:00:26.4]} 45... Rxg2 {[%clk 0:00:16.1]} 46. Rxg2
{[%clk 0:00:28.2]} 46... Ne7 {[%clk 0:00:15.4]} 47. Qh5 {[%clk 0:00:24.3]} 47...
Ng6 {[%clk 0:00:15.9]} 48. Bg3 {[%clk 0:00:23.9]} 48... Qe6 {[%clk 0:00:13.2]}
49. Kh2 {[%clk 0:00:23.7]} 49... Rf8 {[%clk 0:00:09.7]} 50. Rf2 {[%clk
0:00:24.2]} 50... Rf7 {[%clk 0:00:10.7]} 51. Qf5 {[%clk 0:00:21.2]} 51... Qc6
{[%clk 0:00:10.5]} 52. Qd5 {[%clk 0:00:18.7]} 52... Qxd5 {[%clk 0:00:09]} 53.
exd5 {[%clk 0:00:20.5]} 53... Kg8 {[%clk 0:00:10.9]} 54. d6 {[%clk 0:00:21.4]}
54... Nf8 {[%clk 0:00:11.5]} 55. Rf5 {[%clk 0:00:21.9]} 55... Nd7 {[%clk
0:00:07.9]} 56. Rd5 {[%clk 0:00:22.4]} 56... f5 {[%clk 0:00:08.7]} 57. Rxd4
{[%clk 0:00:23.5]} 57... Rf6 {[%clk 0:00:10.3]} 58. Kg2 {[%clk 0:00:23.9]} 58...
Rxh6 {[%clk 0:00:11.2]} 59. Kf3 {[%clk 0:00:25]} 59... Rf6 {[%clk 0:00:12]} 60.
Rc4 {[%clk 0:00:24.5]} 60... Kf7 {[%clk 0:00:13]} 61. Rc7 {[%clk 0:00:25.1]}
61... Ke6 {[%clk 0:00:14.5]} 62. d4 {[%clk 0:00:26]} 62... f4 {[%clk 0:00:15.6]}
63. Bxf4 {[%clk 0:00:26.3]} 63... Nb6 {[%clk 0:00:17]} 64. Re7+ {[%clk
0:00:26.1]} 64... Kd5 {[%clk 0:00:18.4]} 65. Re5+ {[%clk 0:00:27]} 65... Kc6
{[%clk 0:00:17.9]} 66. Ke4 {[%clk 0:00:26]} 66... Nd7 {[%clk 0:00:18.9]} 67. Rf5
{[%clk 0:00:23.4]} 67... Re6+ {[%clk 0:00:19.8]} 68. Kd3 {[%clk 0:00:24.1]}
68... Re1 {[%clk 0:00:20.7]} 69. Kc4 {[%clk 0:00:23.2]} 69... Nb6+ {[%clk
0:00:21.7]} 70. Kd3 {[%clk 0:00:24.2]} 70... Nd7 {[%clk 0:00:22.3]} 71. Bd2
{[%clk 0:00:24.8]} 71... Rh1 {[%clk 0:00:22.9]} 72. Rf3 {[%clk 0:00:23.4]} 72...
h5 {[%clk 0:00:18.9]} 73. c4 {[%clk 0:00:22.5]} 73... Kxd6 {[%clk 0:00:20]} 74.
Bf4+ {[%clk 0:00:23.1]} 74... Kc6 {[%clk 0:00:20.4]} 75. Re3 {[%clk 0:00:22.5]}
75... Rd1+ {[%clk 0:00:20.7]} 76. Kc2 {[%clk 0:00:23]} 76... Rxd4 {[%clk
0:00:21.4]} 77. Re6+ {[%clk 0:00:23.8]} 77... Kb7 {[%clk 0:00:22.8]} 78. Be3
{[%clk 0:00:24.3]} 78... Rg4 {[%clk 0:00:20.7]} 79. Re7 {[%clk 0:00:24.8]} 79...
Kc6 {[%clk 0:00:21.1]} 80. Re6+ {[%clk 0:00:25.6]} 80... Kc7 {[%clk 0:00:21.5]}
81. Rxa6 {[%clk 0:00:25]} 81... Ne5 {[%clk 0:00:21.3]} 82. Rh6 {[%clk
0:00:24.7]} 82... h4 {[%clk 0:00:20.6]} 83. Rh7+ {[%clk 0:00:24.6]} 83... Kc8
{[%clk 0:00:21]} 84. Kc3 {[%clk 0:00:22.6]} 84... Rg3 {[%clk 0:00:21.5]} 85. Kd2
{[%clk 0:00:21.4]} 85... Rg4 {[%clk 0:00:21.5]} 86. Ke2 {[%clk 0:00:21.8]} 86...
Nxc4 {[%clk 0:00:22.3]} 87. bxc4 {[%clk 0:00:22.2]} 87... Rxc4 {[%clk
0:00:24.2]} 88. Kf3 {[%clk 0:00:23.2]} 88... Kd8 {[%clk 0:00:24.7]} 89. Bf4
{[%clk 0:00:23.2]} 89... h3 {[%clk 0:00:25.1]} 90. Be3 {[%clk 0:00:22.6]} 90...
Ke8 {[%clk 0:00:23.1]} 91. Rxh3 {[%clk 0:00:23.4]} 91... Ke7 {[%clk 0:00:24.1]}
92. Rh6 {[%clk 0:00:23.4]} 92... Ra4 {[%clk 0:00:25.2]} 93. Ke2 {[%clk
0:00:21.6]} 93... Re4 {[%clk 0:00:23.6]} 94. Kd3 {[%clk 0:00:22.5]} 94... Rg4
{[%clk 0:00:24.9]} 95. Bd4 {[%clk 0:00:23.4]} 95... Kd7 {[%clk 0:00:22.4]} 96.
Kc4 {[%clk 0:00:22.8]} 96... Rf4 {[%clk 0:00:23]} 97. Kd5 {[%clk 0:00:23.6]}
97... Rf5+ {[%clk 0:00:23.9]} 98. Be5 {[%clk 0:00:24.6]} 98... Rf7 {[%clk
0:00:21.6]} 99. Ra6 {[%clk 0:00:25.2]} 99... Re7 {[%clk 0:00:20.3]} 100. Ra7+
{[%clk 0:00:26.1]} 100... Ke8 {[%clk 0:00:21.4]} 101. Ra6 {[%clk 0:00:25.2]}
101... Kd7 {[%clk 0:00:22.4]} 102. Rb6 {[%clk 0:00:23.1]} 102... Rf7 {[%clk
0:00:19.7]} 103. Rb7+ {[%clk 0:00:19.5]} 103... Ke8 {[%clk 0:00:20.7]} 104. Rb4
{[%clk 0:00:18.6]} 104... Kd7 {[%clk 0:00:20.4]} 105. Rc4 {[%clk 0:00:19.7]}
105... Re7 {[%clk 0:00:20.1]} 106. Bf6 {[%clk 0:00:20.3]} 106... Rf7 {[%clk
0:00:20.5]} 107. Be5 {[%clk 0:00:21.3]} 107... Re7 {[%clk 0:00:21.7]} 108. Ra4
{[%clk 0:00:21.1]} 108... Rf7 {[%clk 0:00:21.9]} 109. Ra6 {[%clk 0:00:21.4]}
109... Re7 {[%clk 0:00:22.6]} 110. Bf6 {[%clk 0:00:22.5]} 110... Rf7 {[%clk
0:00:23.7]} 111. Ke5 {[%clk 0:00:23.7]} 111... Ke8 {[%clk 0:00:23.6]} 112. Ke6
{[%clk 0:00:24.2]} 112... Re7+ {[%clk 0:00:24.9]} 113. Kf5 {[%clk 0:00:24.3]}
113... Rf7 {[%clk 0:00:25.4]} 114. Kg6 {[%clk 0:00:25.3]} 114... Rc7 {[%clk
0:00:23.3]} 115. Rd6 {[%clk 0:00:25.7]} 115... Rc8 {[%clk 0:00:20.1]} 116. Kf5
{[%clk 0:00:24]} 116... Kf7 {[%clk 0:00:18.6]} 117. Rd7+ {[%clk 0:00:24.9]}
117... Ke8 {[%clk 0:00:19.7]} 118. Rh7 {[%clk 0:00:24.8]} 118... Rc6 {[%clk
0:00:19.6]} 119. Be5 {[%clk 0:00:22.6]} 119... Kf8 {[%clk 0:00:17.8]} 120. Ke4
{[%clk 0:00:22.9]} 120... Rc1 {[%clk 0:00:17]} 121. Kf5 {[%clk 0:00:22.2]}
121... Rc6 {[%clk 0:00:16.3]} 122. Bf6 {[%clk 0:00:23]} 122... Ke8 {[%clk
0:00:15.7]} 123. Re7+ {[%clk 0:00:20.1]} 123... Kf8 {[%clk 0:00:16.8]} 124. Ra7
{[%clk 0:00:20.7]} 124... Ke8 {[%clk 0:00:18.3]} 125. Be5 {[%clk 0:00:21.6]}
125... Kd8 {[%clk 0:00:14.5]} 126. Ke4 {[%clk 0:00:22.6]} 126... Rc1 {[%clk
0:00:13.2]} 127. Kd5 {[%clk 0:00:23.5]} 127... Ke8 {[%clk 0:00:11.5]} 128. Ke6
{[%clk 0:00:23.3]} 128... Rc6+ {[%clk 0:00:09.5]} 129. Bd6 {[%clk 0:00:23.9]}
129... Kd8 {[%clk 0:00:07.8]} 130. Ra8+ {[%clk 0:00:17.6]} 130... Rc8 {[%clk
0:00:08.8]} 131. Ra7 {[%clk 0:00:18.4]} 131... Rc6 {[%clk 0:00:10.1]} 132. Rh7
{[%clk 0:00:18.4]} 132... Kc8 {[%clk 0:00:08.8]} 133. Kd5 {[%clk 0:00:19.4]}
133... Rc1 {[%clk 0:00:09.1]} 134. Bc5 {[%clk 0:00:19.4]} 134... Kd8 {[%clk
0:00:06.9]} 135. Kc6 {[%clk 0:00:19.9]} 135... Re1 {[%clk 0:00:08.5]} 136. Rh8+
{[%clk 0:00:20.3]} 136... Re8 {[%clk 0:00:08.5]} 137. Rh7 {[%clk 0:00:22.1]}
137... Re1 {[%clk 0:00:09.5]} 138. Rd7+ {[%clk 0:00:19]} 138... Ke8 {[%clk
0:00:09.9]} 139. Rh7 {[%clk 0:00:19.7]} 139... Kd8 {[%clk 0:00:10.5]} 1/2-1/2

[Event "*** Titled Tuesday Blitz"]
[Site "Chess.com"]
[Date "2018.06.05"]
[Round "5"]
[White "lucasmito"]
[Black "Gr3egor"]
[Result "0-1"]
[WhiteElo "2303"]
[BlackElo "2355"]
[TimeControl "180+2"]
[EndTime "14:08:13 PDT"]
[Termination "Gr3egor won by resignation"]

1. e4 {[%clk 0:03:01.9]} 1... e6 {[%clk 0:03:00.3]} 2. d4 {[%clk 0:03:01.4]}
2... d5 {[%clk 0:03:01.1]} 3. Nc3 {[%clk 0:03:03.3]} 3... Bb4 {[%clk 0:03:01.7]}
4. e5 {[%clk 0:03:04.4]} 4... Ne7 {[%clk 0:03:02.9]} 5. a3 {[%clk 0:02:53.3]}
5... Bxc3+ {[%clk 0:03:02.9]} 6. bxc3 {[%clk 0:02:55.2]} 6... c5 {[%clk
0:03:04.4]} 7. Qg4 {[%clk 0:02:56.6]} 7... Qc7 {[%clk 0:03:05.6]} 8. Qxg7 {[%clk
0:02:57.8]} 8... Rg8 {[%clk 0:03:07.1]} 9. Qxh7 {[%clk 0:02:58.9]} 9... cxd4
{[%clk 0:03:08.6]} 10. Ne2 {[%clk 0:02:59.8]} 10... Nbc6 {[%clk 0:03:09.5]} 11.
f4 {[%clk 0:03:01]} 11... dxc3 {[%clk 0:03:10.4]} 12. h4 {[%clk 0:03:00.7]}
12... Bd7 {[%clk 0:03:08.6]} 13. h5 {[%clk 0:03:01.2]} 13... O-O-O {[%clk
0:03:09.7]} 14. Qd3 {[%clk 0:03:00.9]} 14... a6 {[%clk 0:03:10.7]} 15. Rb1
{[%clk 0:02:53.1]} 15... Nf5 {[%clk 0:03:11.3]} 16. g3 {[%clk 0:02:06]} 16...
Na5 {[%clk 0:03:09.5]} 17. Bh3 {[%clk 0:02:07.2]} 17... Bb5 {[%clk 0:03:07]} 18.
Qf3 {[%clk 0:02:04]} 18... Bxe2 {[%clk 0:03:06.7]} 19. Qxe2 {[%clk 0:02:00.4]}
19... Nxg3 {[%clk 0:03:07.7]} 20. Qg2 {[%clk 0:02:01.9]} 20... Nxh1 {[%clk
0:03:07.7]} 21. Qxh1 {[%clk 0:02:03.8]} 21... Qc4 {[%clk 0:03:07.5]} 22. Qf3
{[%clk 0:02:03.1]} 22... Nc6 {[%clk 0:03:00.4]} 23. h6 {[%clk 0:02:02.1]} 23...
Nd4 {[%clk 0:02:59.1]} 24. Qf2 {[%clk 0:02:00.5]} 24... Rg1+ {[%clk 0:02:57.2]}
25. Bf1 {[%clk 0:02:01.8]} 25... Nxc2+ {[%clk 0:02:56.5]} 0-1

[Event "*** Titled Tuesday Blitz"]
[Site "Chess.com"]
[Date "2018.06.05"]
[Round "5"]
[White "dmosesov"]
[Black "MateusViageiro"]
[Result "1-0"]
[WhiteElo "2200"]
[BlackElo "2166"]
[TimeControl "180+2"]
[EndTime "14:08:26 PDT"]
[Termination "dmosesov won by checkmate"]

1. e4 {[%clk 0:03:01.9]} 1... c5 {[%clk 0:03:00.5]} 2. d4 {[%clk 0:02:57.7]}
2... cxd4 {[%clk 0:03:00.9]} 3. c3 {[%clk 0:02:57.7]} 3... dxc3 {[%clk
0:03:01.4]} 4. Nxc3 {[%clk 0:02:59.6]} 4... Nc6 {[%clk 0:03:02.5]} 5. Nf3 {[%clk
0:02:59.9]} 5... d6 {[%clk 0:03:03.4]} 6. Bc4 {[%clk 0:03:00.9]} 6... g6 {[%clk
0:03:04.3]} 7. e5 {[%clk 0:02:33.5]} 7... e6 {[%clk 0:02:50.2]} 8. exd6 {[%clk
0:02:29.9]} 8... Bxd6 {[%clk 0:02:50.9]} 9. O-O {[%clk 0:02:28.6]} 9... Be7
{[%clk 0:02:50.7]} 10. Qe2 {[%clk 0:02:27.5]} 10... a6 {[%clk 0:02:47.8]} 11.
Rd1 {[%clk 0:02:24.4]} 11... Qc7 {[%clk 0:02:48.4]} 12. Bg5 {[%clk 0:02:02.5]}
12... Bxg5 {[%clk 0:02:39.1]} 13. Nxg5 {[%clk 0:02:04.2]} 13... Nge7 {[%clk
0:02:38.2]} 14. Nce4 {[%clk 0:01:54.5]} 14... Ne5 {[%clk 0:02:20.8]} 15. Nd6+
{[%clk 0:01:51.8]} 15... Kf8 {[%clk 0:02:17.2]} 16. Qxe5 {[%clk 0:01:52.1]}
16... Rg8 {[%clk 0:02:15.4]} 17. Nxh7# {[%clk 0:01:52.8]} 1-0

[Event "*** Titled Tuesday Blitz"]
[Site "Chess.com"]
[Date "2018.06.05"]
[Round "5"]
[White "Shivagami"]
[Black "maziarbagheri"]
[Result "1-0"]
[WhiteElo "2058"]
[BlackElo "2230"]
[TimeControl "180+2"]
[EndTime "14:08:51 PDT"]
[Termination "Shivagami won by resignation"]

1. d4 {[%clk 0:03:01.9]} 1... Nf6 {[%clk 0:02:59]} 2. Bf4 {[%clk 0:03:03.1]}
2... d5 {[%clk 0:02:50.8]} 3. e3 {[%clk 0:03:04]} 3... Bf5 {[%clk 0:02:48.8]} 4.
c4 {[%clk 0:03:03.9]} 4... e6 {[%clk 0:02:48.7]} 5. Nc3 {[%clk 0:03:04.9]} 5...
c6 {[%clk 0:02:45.1]} 6. Qb3 {[%clk 0:03:04.6]} 6... Qb6 {[%clk 0:02:45]} 7. c5
{[%clk 0:03:05.5]} 7... Qxb3 {[%clk 0:02:43]} 8. axb3 {[%clk 0:03:07.4]} 8...
Nbd7 {[%clk 0:02:35.2]} 9. b4 {[%clk 0:03:08.3]} 9... Nh5 {[%clk 0:02:22.7]} 10.
Bc7 {[%clk 0:03:08.3]} 10... Rc8 {[%clk 0:02:18.1]} 11. Be5 {[%clk 0:03:07.6]}
11... a6 {[%clk 0:02:15.7]} 12. h3 {[%clk 0:03:06.3]} 12... Bg6 {[%clk
0:02:10.6]} 13. Nf3 {[%clk 0:02:52.9]} 13... Nhf6 {[%clk 0:02:08.2]} 14. Bh2
{[%clk 0:02:47.1]} 14... Ne4 {[%clk 0:02:07.1]} 15. Be2 {[%clk 0:02:41.3]} 15...
f6 {[%clk 0:02:06.2]} 16. Nxe4 {[%clk 0:02:40.6]} 16... Bxe4 {[%clk 0:02:06.6]}
17. O-O {[%clk 0:02:40.1]} 17... h5 {[%clk 0:02:06.1]} 18. Nd2 {[%clk
0:02:40.6]} 18... Bh7 {[%clk 0:02:05.9]} 19. Nb3 {[%clk 0:02:41.4]} 19... Bc2
{[%clk 0:01:39.5]} 20. Na5 {[%clk 0:02:40.4]} 20... b5 {[%clk 0:01:40]} 21. cxb6
{[%clk 0:02:38.8]} 21... Nxb6 {[%clk 0:01:39.9]} 22. Bxa6 {[%clk 0:02:37.5]} 1-0

[Event "*** Titled Tuesday Blitz"]
[Site "Chess.com"]
[Date "2018.06.05"]
[Round "5"]
[White "Colombiano07"]
[Black "francogreek"]
[Result "1-0"]
[WhiteElo "2247"]
[BlackElo "2269"]
[TimeControl "180+2"]
[EndTime "14:08:52 PDT"]
[Termination "Colombiano07 won by resignation"]

1. e4 {[%clk 0:03:01.9]} 1... c5 {[%clk 0:03:01]} 2. Nc3 {[%clk 0:03:02.4]} 2...
a6 {[%clk 0:03:01.8]} 3. g3 {[%clk 0:03:01.5]} 3... b5 {[%clk 0:03:03]} 4. Bg2
{[%clk 0:03:03.1]} 4... Bb7 {[%clk 0:03:03.7]} 5. d3 {[%clk 0:03:04.6]} 5... e6
{[%clk 0:03:05.1]} 6. a3 {[%clk 0:03:02.5]} 6... d5 {[%clk 0:02:59.6]} 7. Nh3
{[%clk 0:03:00.2]} 7... d4 {[%clk 0:02:56.1]} 8. Ne2 {[%clk 0:03:00.3]} 8... Nc6
{[%clk 0:02:56.8]} 9. O-O {[%clk 0:03:01]} 9... Nf6 {[%clk 0:02:56.2]} 10. Nhf4
{[%clk 0:02:57.3]} 10... Be7 {[%clk 0:02:51.6]} 11. c3 {[%clk 0:02:49]} 11...
O-O {[%clk 0:02:31.2]} 12. cxd4 {[%clk 0:02:45.6]} 12... cxd4 {[%clk 0:02:32.4]}
13. Bd2 {[%clk 0:02:44.4]} 13... Qb6 {[%clk 0:02:32.9]} 14. Rc1 {[%clk
0:02:43.5]} 14... Rfc8 {[%clk 0:02:31.3]} 15. Qb3 {[%clk 0:02:32.7]} 15... a5
{[%clk 0:02:29.7]} 16. Nxe6 {[%clk 0:02:14.4]} 16... a4 {[%clk 0:02:20.5]} 17.
Qa2 {[%clk 0:02:14.1]} 17... fxe6 {[%clk 0:02:21.6]} 18. Qxe6+ {[%clk
0:02:15.4]} 18... Kf8 {[%clk 0:02:23.1]} 19. e5 {[%clk 0:02:14.5]} 19... Ne8
{[%clk 0:02:05.4]} 20. Bd5 {[%clk 0:02:13.8]} 1-0